[Event "Titled Tuesday Blitz April 25 Late 2023"]
[White "Kavutskiy, Konstantin"]
[Black "Demchenko, Anton"]
[WhiteFideId "2026384"]
[BlackFideId "4160258"]
[WhiteElo "2323"]
[BlackElo "2545"]
[Result "1/2-1/2"]
[Round "08"]
[TimeControl "180+2"]
[Date "2023.04.25"]
[WhiteClock "0:00:07"]
[BlackClock "0:00:11"]

1. d4 {[%clk 0:03:00]}  Nf6 {[%clk 0:03:00]} 2. Bg5 {[%clk 0:02:59]}  g6 {[%clk 0:03:00]} 3. Bxf6 {[%clk 0:02:59]}  exf6 {[%clk 0:03:01]} 4. c4 {[%clk 0:02:59]}  d5 {[%clk 0:03:02]} 5. cxd5 {[%clk 0:02:59]}  Qxd5 {[%clk 0:03:03]} 6. Nc3 {[%clk 0:02:59]}  Qd8 {[%clk 0:03:04]} 7. e3 {[%clk 0:02:58]}  c6 {[%clk 0:03:04]} 8. g3 {[%clk 0:02:57]}  Bd6 {[%clk 0:03:04]} 9. Bg2 {[%clk 0:02:56]}  Nd7 {[%clk 0:03:03]} 10. Nge2 {[%clk 0:02:56]}  f5 {[%clk 0:03:01]} 11. O-O {[%clk 0:02:54]}  Nf6 {[%clk 0:03:01]} 12. Rb1 {[%clk 0:02:49]}  Qe7 {[%clk 0:02:57]} 13. Qa4 {[%clk 0:02:36]}  O-O {[%clk 0:02:52]} 14. b4 {[%clk 0:02:34]}  a6 {[%clk 0:02:48]} 15. Nf4 {[%clk 0:02:19]}  Bxf4 {[%clk 0:02:31]} 16. exf4 {[%clk 0:02:18]}  Be6 {[%clk 0:02:31]} 17. Rbd1 {[%clk 0:02:01]}  Rad8 {[%clk 0:02:31]} 18. Rfe1 {[%clk 0:01:59]}  Qd6 {[%clk 0:02:27]} 19. Qa5 {[%clk 0:01:55]}  Nd5 {[%clk 0:01:46]} 20. Nxd5 {[%clk 0:01:52]}  Bxd5 {[%clk 0:01:45]} 21. Bxd5 {[%clk 0:01:52]}  Qxd5 {[%clk 0:01:46]} 22. Qxd5 {[%clk 0:01:51]}  Rxd5 {[%clk 0:01:46]} 23. Re7 {[%clk 0:01:50]}  Rb5 {[%clk 0:01:43]} 24. a3 {[%clk 0:01:47]}  Rd8 {[%clk 0:01:44]} 25. Kf1 {[%clk 0:01:36]}  Kf8 {[%clk 0:01:39]} 26. Rc7 {[%clk 0:01:35]}  Re8 {[%clk 0:01:33]} 27. d5 {[%clk 0:01:20]}  cxd5 {[%clk 0:01:20]} 28. Rd7 {[%clk 0:01:19]}  a5 {[%clk 0:01:00]} 29. R1xd5 {[%clk 0:01:17]}  Rxd5 {[%clk 0:01:00]} 30. Rxd5 {[%clk 0:01:18]}  axb4 {[%clk 0:00:58]} 31. axb4 {[%clk 0:01:18]}  Re6 {[%clk 0:00:57]} 32. Rb5 {[%clk 0:01:12]}  b6 {[%clk 0:00:57]} 33. h4 {[%clk 0:01:03]}  h5 {[%clk 0:00:56]} 34. Rd5 {[%clk 0:01:01]}  Ke7 {[%clk 0:00:56]} 35. Kg2 {[%clk 0:01:00]}  Rd6 {[%clk 0:00:49]} 36. Re5+ {[%clk 0:00:54]}  Kd7 {[%clk 0:00:49]} 37. Kf3 {[%clk 0:00:49]}  Rd4 {[%clk 0:00:39]} 38. b5 {[%clk 0:00:40]}  Rb4 {[%clk 0:00:33]} 39. Rd5+ {[%clk 0:00:37]}  Ke7 {[%clk 0:00:31]} 40. Ke3 {[%clk 0:00:30]}  f6 {[%clk 0:00:25]} 41. Kf3 {[%clk 0:00:17]}  Ke6 {[%clk 0:00:25]} 42. Rd8 {[%clk 0:00:17]}  Rxb5 {[%clk 0:00:26]} 43. Rg8 {[%clk 0:00:17]}  Kf7 {[%clk 0:00:27]} 44. Rb8 {[%clk 0:00:17]}  Rb3+ {[%clk 0:00:26]} 45. Kg2 {[%clk 0:00:17]}  b5 {[%clk 0:00:23]} 46. Rb7+ {[%clk 0:00:18]}  Kg8 {[%clk 0:00:21]} 47. Kg1 {[%clk 0:00:18]}  b4 {[%clk 0:00:21]} 48. Kg2 {[%clk 0:00:18]}  Rb1 {[%clk 0:00:21]} 49. Kh2 {[%clk 0:00:18]}  b3 {[%clk 0:00:21]} 50. Kg2 {[%clk 0:00:18]}  b2 {[%clk 0:00:20]} 51. Kh2 {[%clk 0:00:17]}  Kf8 {[%clk 0:00:20]} 52. Kg2 {[%clk 0:00:17]}  Ke8 {[%clk 0:00:21]} 53. Kh2 {[%clk 0:00:16]}  Kd8 {[%clk 0:00:22]} 54. Kg2 {[%clk 0:00:17]}  Kc8 {[%clk 0:00:22]} 55. Rb3 {[%clk 0:00:16]}  Kc7 {[%clk 0:00:23]} 56. Rb4 {[%clk 0:00:16]}  Kc6 {[%clk 0:00:24]} 57. Rb8 {[%clk 0:00:16]}  Kc5 {[%clk 0:00:24]} 58. Rb7 {[%clk 0:00:16]}  Kd4 {[%clk 0:00:25]} 59. Rb8 {[%clk 0:00:13]}  Ke4 {[%clk 0:00:24]} 60. Re8+ {[%clk 0:00:13]}  Kd5 {[%clk 0:00:24]} 61. Rd8+ {[%clk 0:00:13]}  Ke6 {[%clk 0:00:24]} 62. Rb8 {[%clk 0:00:13]}  Kf7 {[%clk 0:00:13]} 63. Rb7+ {[%clk 0:00:13]}  Kf8 {[%clk 0:00:14]} 64. Kh2 {[%clk 0:00:12]}  Ke8 {[%clk 0:00:12]} 65. Kg2 {[%clk 0:00:12]}  Kd8 {[%clk 0:00:13]} 66. Rb4 {[%clk 0:00:09]}  Kc7 {[%clk 0:00:13]} 67. Rb3 {[%clk 0:00:09]}  Kc6 {[%clk 0:00:11]} 68. Rb8 {[%clk 0:00:09]}  Kd5 {[%clk 0:00:11]} 69. Rb7 {[%clk 0:00:08]}  Ke4 {[%clk 0:00:09]} 70. Re7+ {[%clk 0:00:07]}  Kd3 {[%clk 0:00:09]} 71. Rd7+ {[%clk 0:00:07]}  Kc4 {[%clk 0:00:09]} 72. Rc7+ {[%clk 0:00:07]}  Kb5 {[%clk 0:00:10]} 73. Rb7+ {[%clk 0:00:07]}  Kc6 {[%clk 0:00:11]} 74. Rb8 {[%clk 0:00:07]} 1/2-1/2


[Site "https://www.chess.com"]

[Event "Titled Tuesday Blitz April 25 Late 2023"]
[White "Quesada Perez, Yasser"]
[Black "Kepeshchuk, Mykhaylo"]
[WhiteFideId "3509362"]
[BlackFideId "14113139"]
[WhiteElo "2496"]
[BlackElo "2279"]
[Result "1-0"]
[Round "08"]
[TimeControl "180+2"]
[Date "2023.04.25"]
[WhiteClock "0:01:44"]
[BlackClock "0:01:31"]

1. e4 {[%clk 0:03:00]}  c5 {[%clk 0:02:59]} 2. Nf3 {[%clk 0:02:58]}  d6 {[%clk 0:02:59]} 3. c3 {[%clk 0:02:59]}  Nf6 {[%clk 0:02:59]} 4. h3 {[%clk 0:02:59]}  g6 {[%clk 0:02:58]} 5. Bd3 {[%clk 0:02:59]}  Bg7 {[%clk 0:02:58]} 6. Bc2 {[%clk 0:02:59]}  O-O {[%clk 0:02:58]} 7. d4 {[%clk 0:02:58]}  cxd4 {[%clk 0:02:59]} 8. cxd4 {[%clk 0:02:59]}  d5 {[%clk 0:03:00]} 9. e5 {[%clk 0:02:59]}  Ne4 {[%clk 0:03:00]} 10. Nbd2 {[%clk 0:02:56]}  Nxd2 {[%clk 0:02:59]} 11. Bxd2 {[%clk 0:02:56]}  Nc6 {[%clk 0:02:57]} 12. O-O {[%clk 0:02:57]}  Bf5 {[%clk 0:02:53]} 13. Bxf5 {[%clk 0:02:55]}  gxf5 {[%clk 0:02:54]} 14. Re1 {[%clk 0:02:52]}  e6 {[%clk 0:02:52]} 15. Bg5 {[%clk 0:02:50]}  Qb6 {[%clk 0:02:36]} 16. Qd2 {[%clk 0:02:50]}  Rae8 {[%clk 0:02:19]} 17. Bf6 {[%clk 0:02:45]}  Bxf6 {[%clk 0:02:13]} 18. exf6 {[%clk 0:02:44]}  Kh8 {[%clk 0:02:11]} 19. Qh6 {[%clk 0:02:44]}  Rg8 {[%clk 0:02:09]} 20. Ng5 {[%clk 0:02:44]}  Rxg5 {[%clk 0:02:07]} 21. Qxg5 {[%clk 0:02:45]}  Rg8 {[%clk 0:02:07]} 22. Qh5 {[%clk 0:02:44]}  Nxd4 {[%clk 0:01:56]} 23. Rac1 {[%clk 0:02:28]}  Qd8 {[%clk 0:01:32]} 24. Qxf7 {[%clk 0:01:52]}  Nf3+ {[%clk 0:01:31]} 25. Kh1 {[%clk 0:01:52]}  Nxe1 {[%clk 0:01:31]} 26. Rc7 {[%clk 0:01:44]} 1-0


[Site "https://www.chess.com"]

[Event "Titled Tuesday Blitz April 25 Late 2023"]
[White "Bartel, Mateusz"]
[Black "Musovic, Armin"]
[WhiteFideId "1112635"]
[BlackFideId "939935"]
[WhiteElo "2521"]
[BlackElo "2322"]
[Result "1-0"]
[Round "08"]
[TimeControl "180+2"]
[Date "2023.04.25"]
[WhiteClock "0:00:20"]
[BlackClock "0:00:02"]

1. b4 {[%clk 0:03:00]}  Nf6 {[%clk 0:02:56]} 2. Bb2 {[%clk 0:02:58]}  d5 {[%clk 0:02:56]} 3. Nf3 {[%clk 0:02:53]}  Bg4 {[%clk 0:02:56]} 4. e3 {[%clk 0:02:33]}  e6 {[%clk 0:02:52]} 5. a3 {[%clk 0:02:31]}  c6 {[%clk 0:02:50]} 6. d3 {[%clk 0:02:30]}  Bd6 {[%clk 0:02:49]} 7. Nbd2 {[%clk 0:02:29]}  O-O {[%clk 0:02:50]} 8. h3 {[%clk 0:02:29]}  Bh5 {[%clk 0:02:49]} 9. g4 {[%clk 0:02:29]}  Bg6 {[%clk 0:02:50]} 10. h4 {[%clk 0:02:18]}  h5 {[%clk 0:02:35]} 11. gxh5 {[%clk 0:02:15]}  Bxh5 {[%clk 0:02:33]} 12. Rg1 {[%clk 0:02:11]}  Nbd7 {[%clk 0:02:30]} 13. Be2 {[%clk 0:02:10]}  Re8 {[%clk 0:02:27]} 14. Ng5 {[%clk 0:02:01]}  Bxe2 {[%clk 0:02:19]} 15. Qxe2 {[%clk 0:02:01]}  Be5 {[%clk 0:01:53]} 16. Bxe5 {[%clk 0:01:50]}  Nxe5 {[%clk 0:01:54]} 17. f4 {[%clk 0:01:50]}  Ned7 {[%clk 0:01:32]} 18. h5 {[%clk 0:01:48]}  e5 {[%clk 0:01:24]} 19. f5 {[%clk 0:01:46]}  e4 {[%clk 0:01:11]} 20. d4 {[%clk 0:01:33]}  Kf8 {[%clk 0:01:08]} 21. c4 {[%clk 0:01:29]}  Nb6 {[%clk 0:00:57]} 22. c5 {[%clk 0:01:27]}  Na4 {[%clk 0:00:57]} 23. Qh2 {[%clk 0:01:23]}  Qb8 {[%clk 0:00:55]} 24. Qh4 {[%clk 0:01:22]}  Nb2 {[%clk 0:00:53]} 25. h6 {[%clk 0:01:01]}  gxh6 {[%clk 0:00:51]} 26. Qxh6+ {[%clk 0:00:57]}  Ke7 {[%clk 0:00:52]} 27. Nxf7 {[%clk 0:00:56]}  Rg8 {[%clk 0:00:42]} 28. Ke2 {[%clk 0:00:25]}  Kxf7 {[%clk 0:00:32]} 29. Rg6 {[%clk 0:00:25]}  Rxg6 {[%clk 0:00:05]} 30. Qxg6+ {[%clk 0:00:24]}  Ke7 {[%clk 0:00:04]} 31. Qg7+ {[%clk 0:00:24]}  Ke8 {[%clk 0:00:04]} 32. Rh1 {[%clk 0:00:23]}  Kd8 {[%clk 0:00:01]} 33. Qxf6+ {[%clk 0:00:21]}  Kc7 {[%clk 0:00:02]} 34. Rh7+ {[%clk 0:00:20]}  Kc8 {[%clk 0:00:02]} 35. Qf8# {[%clk 0:00:20]} 1-0


[Site "https://www.chess.com"]

[Event "Titled Tuesday Blitz April 25 Late 2023"]
[White "Smirnov, Pavel"]
[Black "Jimenez Almeida, Luis David"]
[WhiteFideId "4123425"]
[BlackFideId "22242244"]
[WhiteElo "2519"]
[BlackElo "2245"]
[Result "1-0"]
[Round "08"]
[TimeControl "180+2"]
[Date "2023.04.25"]
[WhiteClock "0:02:15"]
[BlackClock "0:00:29"]

1. d4 {[%clk 0:03:00]}  g6 {[%clk 0:02:59]} 2. c4 {[%clk 0:03:01]}  Bg7 {[%clk 0:02:59]} 3. e4 {[%clk 0:03:02]}  c5 {[%clk 0:02:59]} 4. d5 {[%clk 0:03:02]}  b5 {[%clk 0:02:59]} 5. Nc3 {[%clk 0:03:03]}  b4 {[%clk 0:02:54]} 6. Nb1 {[%clk 0:03:02]}  d6 {[%clk 0:02:54]} 7. Bd3 {[%clk 0:03:03]}  a5 {[%clk 0:02:54]} 8. Ne2 {[%clk 0:03:04]}  a4 {[%clk 0:02:54]} 9. O-O {[%clk 0:03:05]}  Nf6 {[%clk 0:02:54]} 10. f4 {[%clk 0:03:06]}  Nfd7 {[%clk 0:02:49]} 11. a3 {[%clk 0:03:05]}  Nb6 {[%clk 0:02:42]} 12. Kh1 {[%clk 0:03:03]}  O-O {[%clk 0:02:41]} 13. Nd2 {[%clk 0:03:02]}  e6 {[%clk 0:02:30]} 14. Nf3 {[%clk 0:03:01]}  exd5 {[%clk 0:02:30]} 15. exd5 {[%clk 0:02:59]}  Ba6 {[%clk 0:02:21]} 16. axb4 {[%clk 0:02:54]}  cxb4 {[%clk 0:02:16]} 17. f5 {[%clk 0:02:55]}  Bxc4 {[%clk 0:02:12]} 18. Bxc4 {[%clk 0:02:55]}  Nxc4 {[%clk 0:02:13]} 19. Rxa4 {[%clk 0:02:55]}  Rxa4 {[%clk 0:01:58]} 20. Qxa4 {[%clk 0:02:56]}  Qa5 {[%clk 0:01:51]} 21. Qxa5 {[%clk 0:02:50]}  Nxa5 {[%clk 0:01:52]} 22. Bf4 {[%clk 0:02:50]}  Rd8 {[%clk 0:01:43]} 23. fxg6 {[%clk 0:02:49]}  hxg6 {[%clk 0:01:42]} 24. Ng5 {[%clk 0:02:50]}  Bf6 {[%clk 0:01:23]} 25. Ne4 {[%clk 0:02:47]}  Be7 {[%clk 0:01:23]} 26. Nd4 {[%clk 0:02:47]}  Nc4 {[%clk 0:01:19]} 27. b3 {[%clk 0:02:43]}  Ne5 {[%clk 0:01:14]} 28. h3 {[%clk 0:02:38]}  Rc8 {[%clk 0:01:12]} 29. Nb5 {[%clk 0:02:35]}  Rd8 {[%clk 0:01:02]} 30. Nbxd6 {[%clk 0:02:27]}  Bxd6 {[%clk 0:01:03]} 31. Nxd6 {[%clk 0:02:27]}  Rxd6 {[%clk 0:01:03]} 32. Bxe5 {[%clk 0:02:27]}  Rb6 {[%clk 0:01:03]} 33. Bc7 {[%clk 0:02:23]}  Rb7 {[%clk 0:01:01]} 34. d6 {[%clk 0:02:24]}  Nd7 {[%clk 0:01:01]} 35. Re1 {[%clk 0:02:22]}  Kf8 {[%clk 0:00:55]} 36. Re7 {[%clk 0:02:21]}  Nf6 {[%clk 0:00:55]} 37. d7 {[%clk 0:02:19]}  Nxd7 {[%clk 0:00:47]} 38. Rxd7 {[%clk 0:02:20]}  Ke8 {[%clk 0:00:47]} 39. Rd8+ {[%clk 0:02:17]}  Ke7 {[%clk 0:00:47]} 40. Rc8 {[%clk 0:02:15]}  Kd7 {[%clk 0:00:46]} 41. Rf8 {[%clk 0:02:14]}  Kxc7 {[%clk 0:00:42]} 42. Rxf7+ {[%clk 0:02:14]}  Kc6 {[%clk 0:00:27]} 43. Rxb7 {[%clk 0:02:15]}  Kxb7 {[%clk 0:00:27]} 44. h4 {[%clk 0:02:15]}  Kc6 {[%clk 0:00:28]} 45. g4 {[%clk 0:02:16]}  Kd5 {[%clk 0:00:28]} 46. Kg2 {[%clk 0:02:15]}  Ke4 {[%clk 0:00:29]} 47. Kg3 {[%clk 0:02:15]}  Kd3 {[%clk 0:00:29]} 48. h5 {[%clk 0:02:15]} 1-0


[Site "https://www.chess.com"]

[Event "Titled Tuesday Blitz April 25 Late 2023"]
[White "Aggelis, Nikolaos"]
[Black "Sieciechowicz, Marcin"]
[WhiteFideId "4213220"]
[BlackFideId "1130170"]
[WhiteElo "2189"]
[BlackElo "2302"]
[Result "0-1"]
[Round "08"]
[TimeControl "180+2"]
[Date "2023.04.25"]
[WhiteClock "0:00:01"]
[BlackClock "0:00:05"]

1. c4 {[%clk 0:03:00]}  Nf6 {[%clk 0:02:59]} 2. g3 {[%clk 0:03:00]}  g6 {[%clk 0:02:59]} 3. Bg2 {[%clk 0:03:00]}  Bg7 {[%clk 0:02:59]} 4. Nf3 {[%clk 0:03:00]}  O-O {[%clk 0:03:00]} 5. O-O {[%clk 0:03:01]}  d6 {[%clk 0:03:01]} 6. b3 {[%clk 0:02:59]}  Ne4 {[%clk 0:02:58]} 7. d4 {[%clk 0:02:58]}  c5 {[%clk 0:02:58]} 8. Bb2 {[%clk 0:02:58]}  Nc6 {[%clk 0:02:58]} 9. Nbd2 {[%clk 0:02:51]}  Bf5 {[%clk 0:02:48]} 10. Nh4 {[%clk 0:02:47]}  Nxd2 {[%clk 0:02:43]} 11. Nxf5 {[%clk 0:02:09]}  Nxf1 {[%clk 0:02:20]} 12. Nxg7 {[%clk 0:02:08]}  cxd4 {[%clk 0:02:20]} 13. Kxf1 {[%clk 0:01:48]}  Kxg7 {[%clk 0:02:19]} 14. e3 {[%clk 0:01:40]}  e5 {[%clk 0:02:19]} 15. Bxc6 {[%clk 0:01:37]}  bxc6 {[%clk 0:02:19]} 16. exd4 {[%clk 0:01:38]}  f6 {[%clk 0:02:15]} 17. Kg1 {[%clk 0:01:36]}  e4 {[%clk 0:02:03]} 18. d5 {[%clk 0:01:35]}  c5 {[%clk 0:02:03]} 19. Qg4 {[%clk 0:01:26]}  Qe7 {[%clk 0:02:00]} 20. Re1 {[%clk 0:01:26]}  Rae8 {[%clk 0:02:00]} 21. Re3 {[%clk 0:01:10]}  Kg8 {[%clk 0:01:38]} 22. h4 {[%clk 0:01:10]}  Qf7 {[%clk 0:01:19]} 23. Qf4 {[%clk 0:01:04]}  Qe7 {[%clk 0:01:16]} 24. f3 {[%clk 0:00:55]}  Qd7 {[%clk 0:01:15]} 25. Rxe4 {[%clk 0:00:44]}  Rxe4 {[%clk 0:01:13]} 26. fxe4 {[%clk 0:00:41]}  Qe7 {[%clk 0:01:12]} 27. Kf2 {[%clk 0:00:39]}  Re8 {[%clk 0:01:12]} 28. Kf3 {[%clk 0:00:39]}  f5 {[%clk 0:01:13]} 29. e5 {[%clk 0:00:26]}  dxe5 {[%clk 0:01:11]} 30. Qe3 {[%clk 0:00:26]}  Qd6 {[%clk 0:00:35]} 31. Kg2 {[%clk 0:00:24]}  a5 {[%clk 0:00:31]} 32. Ba3 {[%clk 0:00:22]}  Rc8 {[%clk 0:00:32]} 33. Bb2 {[%clk 0:00:22]}  a4 {[%clk 0:00:14]} 34. Bxe5 {[%clk 0:00:20]}  Re8 {[%clk 0:00:14]} 35. Bxd6 {[%clk 0:00:17]}  Rxe3 {[%clk 0:00:14]} 36. Bxc5 {[%clk 0:00:18]}  axb3 {[%clk 0:00:13]} 37. axb3 {[%clk 0:00:15]}  Rxb3 {[%clk 0:00:13]} 38. Be7 {[%clk 0:00:09]}  Kf7 {[%clk 0:00:12]} 39. d6 {[%clk 0:00:07]}  Rc3 {[%clk 0:00:11]} 40. c5 {[%clk 0:00:06]}  Rxc5 {[%clk 0:00:10]} 41. Kf3 {[%clk 0:00:06]}  Rc4 {[%clk 0:00:10]} 42. Kf2 {[%clk 0:00:05]}  Ke6 {[%clk 0:00:10]} 43. Kf3 {[%clk 0:00:05]}  Rd4 {[%clk 0:00:08]} 44. Ke3 {[%clk 0:00:04]}  Re4+ {[%clk 0:00:08]} 45. Kf3 {[%clk 0:00:04]}  Ra4 {[%clk 0:00:09]} 46. Ke3 {[%clk 0:00:04]}  Rc4 {[%clk 0:00:06]} 47. Kf3 {[%clk 0:00:03]}  Rg4 {[%clk 0:00:06]} 48. Kf2 {[%clk 0:00:03]}  f4 {[%clk 0:00:06]} 49. gxf4 {[%clk 0:00:04]}  Rxf4+ {[%clk 0:00:07]} 50. Kg3 {[%clk 0:00:05]}  Rd4 {[%clk 0:00:07]} 51. Kh3 {[%clk 0:00:05]}  Kf5 {[%clk 0:00:06]} 52. Kg3 {[%clk 0:00:05]}  Rd3+ {[%clk 0:00:07]} 53. Kg2 {[%clk 0:00:06]}  Kg4 {[%clk 0:00:07]} 54. Kf2 {[%clk 0:00:06]}  h6 {[%clk 0:00:07]} 55. Ke2 {[%clk 0:00:06]}  Rd5 {[%clk 0:00:07]} 56. Kf2 {[%clk 0:00:07]}  Kf4 {[%clk 0:00:05]} 57. Kg2 {[%clk 0:00:07]}  g5 {[%clk 0:00:05]} 58. hxg5 {[%clk 0:00:07]}  hxg5 {[%clk 0:00:06]} 59. Kf2 {[%clk 0:00:07]}  g4 {[%clk 0:00:07]} 60. Kg2 {[%clk 0:00:05]}  Rd2+ {[%clk 0:00:06]} 61. Kf1 {[%clk 0:00:05]}  Kf3 {[%clk 0:00:07]} 62. Bh4 {[%clk 0:00:02]}  Rxd6 {[%clk 0:00:06]} 63. Kg1 {[%clk 0:00:01]}  g3 {[%clk 0:00:05]} 0-1


[Site "https://www.chess.com"]

[Event "Titled Tuesday Blitz April 25 Late 2023"]
[White "Sabuk, Piotr"]
[Black "Petrovic, Aleksa"]
[WhiteFideId "1137565"]
[BlackFideId "967629"]
[WhiteElo "2298"]
[BlackElo "2309"]
[Result "1-0"]
[Round "08"]
[TimeControl "180+2"]
[Date "2023.04.25"]
[WhiteClock "0:00:42"]
[BlackClock "0:00:01"]

1. d4 {[%clk 0:02:59]}  Nf6 {[%clk 0:02:55]} 2. c4 {[%clk 0:02:59]}  e6 {[%clk 0:02:54]} 3. Nf3 {[%clk 0:02:57]}  b6 {[%clk 0:02:53]} 4. a3 {[%clk 0:02:54]}  Bb7 {[%clk 0:02:52]} 5. Bf4 {[%clk 0:02:52]}  g6 {[%clk 0:02:50]} 6. Nc3 {[%clk 0:02:51]}  d6 {[%clk 0:02:49]} 7. e3 {[%clk 0:02:48]}  Bg7 {[%clk 0:02:49]} 8. Bd3 {[%clk 0:02:41]}  O-O {[%clk 0:02:47]} 9. O-O {[%clk 0:02:28]}  Nbd7 {[%clk 0:02:44]} 10. e4 {[%clk 0:02:20]}  Nh5 {[%clk 0:02:32]} 11. Bg5 {[%clk 0:02:19]}  Qc8 {[%clk 0:02:13]} 12. Qd2 {[%clk 0:02:12]}  c5 {[%clk 0:02:01]} 13. d5 {[%clk 0:02:10]}  Nhf6 {[%clk 0:01:16]} 14. Bf4 {[%clk 0:01:58]}  e5 {[%clk 0:01:03]} 15. Bg5 {[%clk 0:01:58]}  Kh8 {[%clk 0:00:57]} 16. g3 {[%clk 0:01:56]}  Ng8 {[%clk 0:00:54]} 17. Nh4 {[%clk 0:01:50]}  h6 {[%clk 0:00:50]} 18. Be3 {[%clk 0:01:50]}  Qd8 {[%clk 0:00:45]} 19. Qe1 {[%clk 0:01:42]}  Qe7 {[%clk 0:00:39]} 20. f4 {[%clk 0:01:38]}  exf4 {[%clk 0:00:20]} 21. gxf4 {[%clk 0:01:38]}  Ngf6 {[%clk 0:00:20]} 22. h3 {[%clk 0:01:23]}  Rae8 {[%clk 0:00:20]} 23. Qf2 {[%clk 0:01:13]}  Nh5 {[%clk 0:00:20]} 24. Rae1 {[%clk 0:01:10]}  Ndf6 {[%clk 0:00:17]} 25. Bd2 {[%clk 0:01:07]}  Bc8 {[%clk 0:00:17]} 26. Kh2 {[%clk 0:01:06]}  Nd7 {[%clk 0:00:12]} 27. e5 {[%clk 0:01:01]}  dxe5 {[%clk 0:00:10]} 28. Bxg6 {[%clk 0:00:59]}  Bf6 {[%clk 0:00:04]} 29. Nf5 {[%clk 0:00:59]}  fxg6 {[%clk 0:00:01]} 30. Nxe7 {[%clk 0:00:59]}  Rxe7 {[%clk 0:00:02]} 31. Kh1 {[%clk 0:00:51]}  Nxf4 {[%clk 0:00:01]} 32. d6 {[%clk 0:00:42]} 1-0


[Site "https://www.chess.com"]

[Event "Titled Tuesday Blitz April 25 Late 2023"]
[White "Kucuksari, Kaan"]
[Black "Jaskolka, Tomasz"]
[WhiteFideId "6380166"]
[BlackFideId "1170791"]
[WhiteElo "2364"]
[BlackElo "2155"]
[Result "1-0"]
[Round "08"]
[TimeControl "180+2"]
[Date "2023.04.25"]
[WhiteClock "0:00:08"]
[BlackClock "0:00:12"]

1. e4 {[%clk 0:03:00]}  e6 {[%clk 0:02:58]} 2. d4 {[%clk 0:03:00]}  d5 {[%clk 0:02:58]} 3. Nc3 {[%clk 0:03:00]}  Bb4 {[%clk 0:02:58]} 4. e5 {[%clk 0:02:59]}  Ne7 {[%clk 0:02:59]} 5. Qg4 {[%clk 0:02:57]}  c5 {[%clk 0:02:52]} 6. Qxg7 {[%clk 0:02:55]}  Rg8 {[%clk 0:02:51]} 7. Qxh7 {[%clk 0:02:49]}  cxd4 {[%clk 0:02:51]} 8. a3 {[%clk 0:02:38]}  Qa5 {[%clk 0:02:50]} 9. axb4 {[%clk 0:02:20]}  Qxa1 {[%clk 0:02:48]} 10. Bb5+ {[%clk 0:02:21]}  Bd7 {[%clk 0:02:44]} 11. Bxd7+ {[%clk 0:02:20]}  Nxd7 {[%clk 0:02:45]} 12. Nce2 {[%clk 0:02:21]}  Nxe5 {[%clk 0:02:37]} 13. Nf3 {[%clk 0:02:20]}  Nxf3+ {[%clk 0:02:35]} 14. gxf3 {[%clk 0:02:21]}  Rc8 {[%clk 0:02:29]} 15. Qd3 {[%clk 0:02:17]}  Nf5 {[%clk 0:02:25]} 16. Qb5+ {[%clk 0:02:11]}  Kf8 {[%clk 0:02:25]} 17. Qd7 {[%clk 0:01:41]}  Ne7 {[%clk 0:01:20]} 18. Kd2 {[%clk 0:01:41]}  d3 {[%clk 0:01:03]} 19. Kxd3 {[%clk 0:01:37]}  Qa6+ {[%clk 0:00:42]} 20. b5 {[%clk 0:01:38]}  Qa4 {[%clk 0:00:42]} 21. Bh6+ {[%clk 0:01:37]}  Rg7 {[%clk 0:00:43]} 22. Bxg7+ {[%clk 0:01:02]}  Kxg7 {[%clk 0:00:44]} 23. Qxe7 {[%clk 0:01:02]}  Qxc2+ {[%clk 0:00:21]} 24. Ke3 {[%clk 0:01:02]}  Qb3+ {[%clk 0:00:22]} 25. Kf4 {[%clk 0:00:55]}  Qc4+ {[%clk 0:00:19]} 26. Kg5 {[%clk 0:00:31]}  Qxe2 {[%clk 0:00:17]} 27. Qf6+ {[%clk 0:00:24]}  Kh7 {[%clk 0:00:15]} 28. Qxf7+ {[%clk 0:00:12]}  Kh8 {[%clk 0:00:15]} 29. Qf6+ {[%clk 0:00:11]}  Kh7 {[%clk 0:00:16]} 30. Qg6+ {[%clk 0:00:11]}  Kh8 {[%clk 0:00:17]} 31. Qh6+ {[%clk 0:00:10]}  Kg8 {[%clk 0:00:17]} 32. Rg1 {[%clk 0:00:07]}  Qxf2 {[%clk 0:00:17]} 33. Qxe6+ {[%clk 0:00:05]}  Kg7 {[%clk 0:00:17]} 34. Qd7+ {[%clk 0:00:05]}  Kf8 {[%clk 0:00:17]} 35. Qxc8+ {[%clk 0:00:06]}  Ke7 {[%clk 0:00:18]} 36. Qc7+ {[%clk 0:00:06]}  Ke6 {[%clk 0:00:18]} 37. Qc8+ {[%clk 0:00:06]}  Kd6 {[%clk 0:00:18]} 38. Qg4 {[%clk 0:00:06]}  Kc5 {[%clk 0:00:15]} 39. f4 {[%clk 0:00:05]}  Kxb5 {[%clk 0:00:14]} 40. f5 {[%clk 0:00:06]}  Qe3+ {[%clk 0:00:14]} 41. Kh4 {[%clk 0:00:06]}  Qh6+ {[%clk 0:00:14]} 42. Kg3 {[%clk 0:00:06]}  Qe3+ {[%clk 0:00:15]} 43. Kg2 {[%clk 0:00:06]}  Qd2+ {[%clk 0:00:13]} 44. Kh1 {[%clk 0:00:06]}  Qxb2 {[%clk 0:00:14]} 45. Qf3 {[%clk 0:00:06]}  Qf6 {[%clk 0:00:09]} 46. Qxd5+ {[%clk 0:00:06]}  Kb4 {[%clk 0:00:09]} 47. Rb1+ {[%clk 0:00:06]}  Kc3 {[%clk 0:00:10]} 48. Rb3+ {[%clk 0:00:07]}  Kc2 {[%clk 0:00:11]} 49. Qd3+ {[%clk 0:00:07]}  Kc1 {[%clk 0:00:12]} 50. Rb1# {[%clk 0:00:08]} 1-0


[Site "https://www.chess.com"]

[Event "Titled Tuesday Blitz April 25 Late 2023"]
[White "Lewicki, Miroslaw"]
[Black "Meunier-Pion, Jean"]
[WhiteFideId "1113380"]
[BlackFideId "20685327"]
[WhiteElo "2212"]
[BlackElo "2124"]
[Result "1-0"]
[Round "08"]
[TimeControl "180+2"]
[Date "2023.04.25"]
[WhiteClock "0:01:05"]
[BlackClock "0:00:05"]

1. b3 {[%clk 0:03:00]}  e5 {[%clk 0:02:59]} 2. Bb2 {[%clk 0:03:01]}  Nc6 {[%clk 0:02:59]} 3. g3 {[%clk 0:02:59]}  d5 {[%clk 0:02:57]} 4. Bg2 {[%clk 0:03:00]}  Be6 {[%clk 0:02:56]} 5. d3 {[%clk 0:02:53]}  Qd7 {[%clk 0:02:52]} 6. Nf3 {[%clk 0:02:49]}  f6 {[%clk 0:02:40]} 7. O-O {[%clk 0:02:48]}  h5 {[%clk 0:02:35]} 8. h4 {[%clk 0:02:39]}  O-O-O {[%clk 0:02:31]} 9. c4 {[%clk 0:02:26]}  d4 {[%clk 0:02:28]} 10. a3 {[%clk 0:02:21]}  g5 {[%clk 0:01:50]} 11. b4 {[%clk 0:02:19]}  Bg4 {[%clk 0:01:34]} 12. b5 {[%clk 0:02:17]}  Nb8 {[%clk 0:01:28]} 13. Qa4 {[%clk 0:02:16]}  a6 {[%clk 0:01:20]} 14. Nbd2 {[%clk 0:02:14]}  gxh4 {[%clk 0:01:18]} 15. Nxh4 {[%clk 0:01:52]}  Bxe2 {[%clk 0:01:07]} 16. Rfe1 {[%clk 0:01:51]}  Bxd3 {[%clk 0:01:04]} 17. Qb3 {[%clk 0:01:46]}  Bxc4 {[%clk 0:00:30]} 18. Nxc4 {[%clk 0:01:22]}  axb5 {[%clk 0:00:30]} 19. a4 {[%clk 0:01:15]}  b4 {[%clk 0:00:26]} 20. a5 {[%clk 0:01:13]}  Na6 {[%clk 0:00:23]} 21. Rac1 {[%clk 0:01:12]}  Kb8 {[%clk 0:00:22]} 22. Qf3 {[%clk 0:01:06]}  c6 {[%clk 0:00:17]} 23. Ng6 {[%clk 0:01:03]}  Rh6 {[%clk 0:00:16]} 24. Nxf8 {[%clk 0:01:03]}  Rxf8 {[%clk 0:00:17]} 25. Nxe5 {[%clk 0:01:03]}  Qd5 {[%clk 0:00:06]} 26. Qxd5 {[%clk 0:01:03]}  cxd5 {[%clk 0:00:07]} 27. Nd7+ {[%clk 0:01:04]}  Ka7 {[%clk 0:00:07]} 28. Nxf8 {[%clk 0:01:05]}  h4 {[%clk 0:00:05]} 29. Bxd4+ {[%clk 0:01:05]} 1-0


[Site "https://www.chess.com"]